Cogmind - Beta 15 @@@ ROGUE MODE // 2025.08.21 @ 10:20:41 Player: Jiber Result: Destroyed by 5B-TD3(R) with Subdweller Machine Gun Performance ------------- Evolutions (0) 0 Regions Visited (3) 600 Robots Destroyed (11) 55 Value Destroyed (170) 170 Prototype IDs (0) 0 Alien Tech Used (0) 0 Bonus (0) 0 TOTAL SCORE: 825 Bonus ------- None Cogmind --------- Core Integrity 0/250 Matter 275/300 Energy 100/100 System Corruption 0% Temperature Cool (0) Movement Core (200) Ox3 Location -10/Subcaves Parts ------- > --- POWER (1) -------- (None) > --- PROPULSION (2) --- (None) > --- UTILITY (2) ------ Medium Storage Unit Targeting Computer > --- WEAPON (2) ------- Light Assault Rifle Light Assault Rifle > --- INVENTORY (10) --- Aluminum Leg Aluminum Leg Wheel Scrap Suit Subdweller Optics Peak State ------------ > --- POWER ------------ Light Ion Engine > --- PROPULSION ------- Compact Wheel Subdweller Monowheel > --- UTILITY ---------- Medium Storage Unit Targeting Computer > --- WEAPON ----------- Small Laser Assault Rifle > --- INVENTORY -------- Light Ion Engine Aluminum Leg Aluminum Leg Compact Wheel Scrap Suit Light Assault Rifle Light Assault Rifle [Rating: 9] Favorites ----------- Power Light Ion Engine Engine Light Ion Engine Propulsion Compact Wheel Wheel Compact Wheel Utility Medium Storage Unit Storage Medium Storage Unit Processor Targeting Computer Weapon Small Laser Energy Gun Small Laser Ballistic Gun Assault Rifle Build | -11 -10 -10 -10 ------- Run | Yrd Mat Min Sub Slots Evolved . | . . . . Power . | . . . . Propulsion . | . . . . Utility . | . . . . Weapon . | . . . . Parts Attached 15 | 6 3 . 6 Power 3 | 1 1 . 1 Engine 3 | 1 1 . 1 Core . | . . . . Reactor . | . . . . Propulsion 5 | 2 . . 3 Treads . | . . . . Leg . | . . . . Wheel 5 | 2 . . 3 Hover . | . . . . Flight . | . . . . Utility 3 | 1 2 . . Device . | . . . . Storage 2 | 1 1 . . Processor 1 | . 1 . . Hackware . | . . . . Protection . | . . . . Artifact . | . . . . Weapon 4 | 2 . . 2 Energy Gun 1 | 1 . . . Energy Cannon . | . . . . Ballistic Gun 3 | 1 . . 2 Ballistic Cannon . | . . . . Launcher . | . . . . Special Weapon . | . . . . Impact Weapon . | . . . . Slashing Weapon . | . . . . Piercing Weapon . | . . . . Special Melee Weapon . | . . . . Unidentified Prototypes . | . . . . Parts Lost 6 | . . . 6 Power 2 | . . . 2 Propulsion 3 | . . . 3 Utility . | . . . . Weapon 1 | . . . 1 Highest Loss Streak 3 | . . . 3 To Critical Strikes . | . . . . Average Backups 5 | 2 3 4 6 Power . | . . 1 . Propulsion 2 | 1 2 2 2 Utility . | . . . 1 Weapon 1 | . . 1 1 Tool/Special . | . . . . Unused Backups 4 | . . . 4 Power . | . . . . Propulsion 2 | . . . 2 Utility 2 | . . . 2 Weapon . | . . . . Tool/Special . | . . . . Average Slot Usage (%) 90 | . 88 100 88 Engine 10 | . 14 14 8 Wheel 25 | . 28 28 23 Storage 14 | . 14 14 14 Processor 10 | . 2 14 14 Energy Gun 12 | . 14 14 12 Ballistic Gun 14 | . 14 14 14 Peak Build Rating 9 | 6 7 8 9 Average Rating 7 | 3 6 7 8 On Entrance 5 | . 6 7 8 Naked Turns . | . . . . Heaviest Build 16 | 11 16 16 16 Greatest Support 40 | 32 32 32 40 Greatest Overweight (x) 1 | 1 . . . Average Overweight (x) . | . . . . Largest Inventory Capacity 10 | 8 10 10 10 Average Capacity 9 | 7 9 10 10 Most Carried 9 | 5 5 7 9 Average Carried 5 | 2 3 5 7 Final Capacity 10 | 8 10 10 10 Final Carried 7 | 2 4 7 6 Class Distribution -------------------- 100% | Mutant Dominant Class ---------------- Mutant | -10/Materials Mutant | -10/Mines Mutant | -10/Subcaves Resources | -11 -10 -10 -10 ----------- Run | Yrd Mat Min Sub Matter Collected 408 | 228 44 75 61 Remotely . | . . . . Salvage Created 209 | . 76 41 92 Parts 22 | . 12 4 6 Haulers Intercepted . | . . . . Recyclers Shooed . | . . . . Parts Field Recycled . | . . . . Retrieved Matter . | . . . . Parts Self-Destructed 20 | . . . 20 Prevented . | . . . . Kills | -11 -10 -10 -10 ------- Run | Yrd Mat Min Sub Combat Hostiles Destroyed 11 | . 6 3 2 Guns 11 | . 6 3 2 Classes Destroyed 2 | . 1 . 1 Swarmer 9 | . 6 3 . Subdweller 2 | . . . 2 Best Kill Streak 3 | . 3 3 1 Combat Bots Only 3 | . 3 3 1 Max Kills in Single Turn 2 | . 1 2 1 Gunslinging 1 | . . 1 . Exploded . | . . . . Melee . | . . . . Uniques/NPCs Destroyed . | . . . . Combat | -11 -10 -10 -10 -------- Run | Yrd Mat Min Sub Hostile Shots Fired 79 | . 23 11 45 Missed 22 | . 7 5 10 Hits 57 | . 16 6 35 Projectile 57 | . 16 6 35 AOE 3 | . . . 3 Critical Strikes 1 | . . . 1 Damage Taken 969 | . 121 48 800 Core 251 | . 23 19 209 Absorbed by Shields . | . . . . Core Remaining (%) 100 | 100 . . . Volleys Fired 42 | . 14 5 23 Largest 2 | . 2 2 2 Hottest 60 | . 60 60 60 Shots Fired 77 | . 28 10 39 Gun 77 | . 28 10 39 Cannon . | . . . . Launcher . | . . . . Special . | . . . . Kinetic 49 | . 14 5 30 Thermal 28 | . 14 5 9 Explosive . | . . . . Electromagnetic . | . . . . Robot Hit Streak 20 | . 2 2 20 Robot Miss Streak 3 | . 3 3 1 Penetration Max . | . . . . Secondary Targets 3 | . 2 1 . Max Gunslinging Chain 1 | . 1 1 . Shots Hit Robots 50 | . 10 4 36 Core Hits 16 | . 6 3 7 Critical Kills 1 | . . 1 . Critical Parts Destroyed . | . . . . Critical Strikes 1 | . . 1 . Destroy 1 | . . 1 . Melee Attacks . | . . . . Impact . | . . . . Slashing . | . . . . Piercing . | . . . . Sneak Attacks . | . . . . Combat Hostiles . | . . . . Follow-up Attacks . | . . . . Damage Inflicted 493 | . 112 46 335 Guns 493 | . 112 46 335 Cannons . | . . . . Explosions . | . . . . Melee . | . . . . Ramming . | . . . . Kinetic 319 | . 36 36 247 Thermal 174 | . 76 10 88 Explosive . | . . . . Electromagnetic . | . . . . Impact . | . . . . Slashing . | . . . . Piercing . | . . . . Highest Corruption . | . . . . Average Corruption . | . . . . Corruption Purged . | . . . . Corruption Blocked . | . . . . Overload Shots . | . . . . Overflow Damage . | . . . . Projectiles . | . . . . Explosions . | . . . . Melee . | . . . . Knockbacks . | . . . . Impact . | . . . . Kinetic . | . . . . Secondary . | . . . . Self-Inflicted Damage . | . . . . Shots . | . . . . Rammed . | . . . . Targets Rammed . | . . . . Kicked . | . . . . Crushed . | . . . . Highest Temperature 20 | . 20 . . Average Temperature 20 | . 20 . . Received Heat Transfer 102 | . . . 102 Siege Activations . | . . . . Martial Activations . | . . . . Shielding Activations . | . . . . Robots Disrupted . | . . . . Combat Hostiles . | . . . . Robots Corrupted . | . . . . Combat Hostiles . | . . . . Parts Fried . | . . . . Impact Corruptions . | . . . . Robots Melted . | . . . . Combat Hostiles . | . . . . Parts Melted 2 | . . . 2 Heat Transferred 400 | . 175 25 200 Parts Sabotaged . | . . . . Parts Stolen . | . . . . Parts Stripped . | . . . . Power Chain Reactions . | . . . . Alert | -11 -10 -10 -10 ------- Run | Yrd Mat Min Sub Maximum Alert Level . | . . . . Low Security (%) 100 | 100 100 100 . Level 1 . | . . . . Level 2 . | . . . . Level 3 . | . . . . Level 4 . | . . . . Level 5 . | . . . . High Security . | . . . . Max Security . | . . . . Peak Influence 91 | . 81 91 . Initial 31 | . . 31 . Average 34 | . 30 62 . Influence Increases 226 | . 141 70 15 Destroy 0b10 Robot/C 180 | . 120 60 . Destroy Leader 30 | . 20 10 . Destroy Structure 1 | . 1 . . Lose Combat Pursuer 15 | . . . 15 Influence Decreases 226 | . 60 90 76 Entered New Map 83 | . . 50 33 Time Decay 130 | . 60 40 30 Lost Part 13 | . . . 13 Squads Dispatched . | . . . . Investigation . | . . . . Extermination . | . . . . Reinforcement . | . . . . Assault . | . . . . Garrison . | . . . . Intercept . | . . . . Searches Triggered . | . . . . Construction Impeded . | . . . . Haulers Reinforced . | . . . . Active Scanning Responses . | . . . . Cargo Convoy Interrupts . | . . . . Stealth | -11 -10 -10 -10 --------- Run | Yrd Mat Min Sub Distress Signals . | . . . . Communications Jammed . | . . . . Distress Signals . | . . . . Times Spotted 16 | . 6 3 7 Peak Tracking Total 3 | . 3 3 2 Tactical Retreats 1 | . . . 1 Traps | -11 -10 -10 -10 ------- Run | Yrd Mat Min Sub Traps Triggered . | . . . . Indirectly . | . . . . Trap Hack Attempts . | . . . . Triggered . | . . . . Disarmed . | . . . . Reprogrammed . | . . . . Reused . | . . . . Traps Extracted . | . . . . Installed . | . . . . Triggered . | . . . . Machines | -11 -10 -10 -10 ---------- Run | Yrd Mat Min Sub Machines Disabled . | . . . . Max in Single Turn . | . . . . Machines Repaired . | . . . . Machines Dismantled . | . . . . Machines Sabotaged . | . . . . Overloaded Fab Kills . | . . . . Hacking | -11 -10 -10 -10 --------- Run | Yrd Mat Min Sub Machines Accessed 1 | . 1 . . Terminals 1 | . 1 . . Fabricators . | . . . . Repair Stations . | . . . . Recycling Units . | . . . . Scanalyzers . | . . . . Garrison Access . | . . . . Total Hacks 2 | . 2 . . Successful . | . . . . Failed 2 | . 2 . . Catastrophic 1 | . 1 . . Database Lockouts . | . . . . Manual . | . . . . Terminals 2 | . 2 . . Fabricators . | . . . . Repair Stations . | . . . . Recycling Units . | . . . . Scanalyzers . | . . . . Garrison Access . | . . . . Terminal Hacks . | . . . . Fabricator Hacks . | . . . . Repair Station Hacks . | . . . . Recycling Unit Hacks . | . . . . Scanalyzer . | . . . . Garrison Access Hacks . | . . . . Unauthorized Hacks . | . . . . Terminals . | . . . . Fabricators . | . . . . Repair Stations . | . . . . Recycling Units . | . . . . Scanalyzers . | . . . . Garrison Access . | . . . . Data Cores Recovered . | . . . . Used . | . . . . Hacking Detections 1 | . 1 . . Full Trace Events . | . . . . Feedback Events . | . . . . Feedback Blocked . | . . . . Robot Schematics Acquired . | . . . . Robots Built . | . . . . Authchips . | . . . . Time . | . . . . Total Robot Build Rating . | . . . . Part Schematics Acquired . | . . . . Parts Built . | . . . . Authchips . | . . . . Time . | . . . . Total Part Build Rating . | . . . . Parts Repaired . | . . . . Time . | . . . . Parts Recycled . | . . . . Recycled Matter . | . . . . Retrieved Matter . | . . . . Retrieved Components . | . . . . Parts Scanalyzed . | . . . . Part Schematics Acquired . | . . . . Parts Damaged . | . . . . Bothacking | -11 -10 -10 -10 ------------ Run | Yrd Mat Min Sub Used RIF Installer . | . . . . Robots Hacked . | . . . . Non-combat . | . . . . Combat . | . . . . Robot Hacks Applied . | . . . . Relay Couplers Released . | . . . . Fabnet Peak Effective % . | . . . . Robots Rewired . | . . . . Allies Hacked . | . . . . Hacks Repelled . | . . . . Allies | -11 -10 -10 -10 -------- Run | Yrd Mat Min Sub Total Allies . | . . . . Largest Group . | . . . . Highest-Rated Group . | . . . . Highest-Rated Ally . | . . . . Total Orders . | . . . . Ally Attacks . | . . . . Total Damage . | . . . . Kills . | . . . . Allies Corrupted . | . . . . Allies Melted . | . . . . Intel | -11 -10 -10 -10 ------- Run | Yrd Mat Min Sub Active Infowar (turns) . | . . . . Robot Analysis Total . | . . . . Derelict Logs Recovered 2 | . . . 2 Drone Launches . | . . . . Drone Recoveries . | . . . . Exploration | -11 -10 -10 -10 ------------- Run | Yrd Mat Min Sub Turns Passed 709 | 55 178 94 382 Spaces Moved 543 | 48 124 78 293 Core 17 | 17 . . . Treads . | . . . . Legs . | . . . . Wheels 526 | 31 124 78 293 Hover . | . . . . Flight . | . . . . Fastest Speed 50 | 50 100 100 95 Average Speed 100 | 87 100 100 103 Slowest Speed 110 | 100 100 100 110 Overloaded Moves . | . . . . Propulsion Burnouts . | . . . . Robots Hopped . | . . . . Potential Cave-ins . | . . . . Cave-ins Triggered . | . . . . Exploration Rate (%) 18 | 4 31 13 27 Regions Visited 3 Branch Regions 2 Pre-discovered Areas 3 | . . 1 2 Known Exits Taken . | . . . . Unknown Exits Taken 3 | 1 1 1 . Scrap Searched 5 | . . 1 4 Spaces Dug . | . . . . Terrain Destroyed . | . . . . Melee . | . . . . Projectile . | . . . . AOE . | . . . . Terrain Rammed . | . . . . Walls Destroyed . | . . . . Machines Disabled . | . . . . Actions | -11 -10 -10 -10 --------- Run | Yrd Mat Min Sub Total 631 | 60 149 84 338 Wait 12 | . 2 . 10 Move 540 | 47 123 77 293 Hop . | . . . . Pick Up 18 | 7 5 2 4 Fast Attach 1 | 1 . . . Attach 9 | 5 1 . 3 Detach . | . . . . Swap 5 | . 2 . 3 Drop 4 | . 2 . 2 Fire 42 | . 14 5 23 Melee . | . . . . Ram . | . . . . Kick . | . . . . Crush . | . . . . Escape Stasis . | . . . . Rewire . | . . . . Trap . | . . . . Miscellaneous . | . . . . Route ------- -11/Scrapyard -10/Materials -10/Mines -10/Subcaves History --------- Turn | Location | Event 7 | -11/Scrapyard | Discovered new exit (range 16) 56 | -11/Scrapyard | Entered Materials 213 | -10/Materials | Discovered new exit (range 7) 234 | -10/Materials | Entered Mines 235 | -10/Mines | Learned location of Storage (-9) 280 | -10/Mines | Found a Scrap Suit stashed away for nefarious purposes 284 | -10/Mines | Found Scrap Suit 307 | -10/Mines | Build established: Mutant 307 | -10/Mines | Discovered new exit (range 7) 328 | -10/Mines | Entered Subcaves 329 | -10/Subcaves | Approached by a straggling Scientist 336 | -10/Subcaves | Learned Materials stockpile data 375 | -10/Subcaves | Disturbed a concealed Subdweller 455 | -10/Subcaves | A swath of the cavern ceiling suddenly collapsed 535 | -10/Subcaves | Learned location of Zion (-7) 535 | -10/Subcaves | Met a Zionite searching for "candidates" 664 | -10/Subcaves | Ambushed by Subdweller buried in earth 669 | -10/Subcaves | Core integrity fell below 50% 689 | -10/Subcaves | Core integrity fell below 20% 710 | -10/Subcaves | Destroyed by 5B-TD3(R) with Subdweller Machine Gun Last Messages --------------- might I suggest a trip to Zion?" World map updated: -7/Zion. 00539_ Acquired derelict log, extracted data. World map updated: -8/Materials. 00560_ Acquired 7 matter. 00585_ Lgt. Ion Engine destroyed. 00587_ Sub. Power Source melted. 00587_ G5-QF7(R) destroyed. 00590_ Acquired 11 matter. 00592_ Acquired Sub. Monowheel. 00595_ Dropped Com. Wheel. 00595_ Acquired 10 matter. 00597_ Acquired Sub. Optics. 00598_ Dropped Assault Rifle. 00648_ 9B-4M2(R) destroyed. 00660_ Acquired 1 matter. 00662_ 55-UKJ(R): "ARGHSUB!" 00664_ Sml. Laser destroyed. 00665_ 5B-TD3(R): "ARGHSUB!" 00680_ Sub. Monowheel destroyed. Map ----- +----------------------------------------------------+ | ?????????????????????????????????????????????????? | | ?????????????????????????????????????????????????? | | ?????????????????????????????????????????????????? | | ?????????????????????????????????????????????????? | | ?????????????????????????????????????????????????? | | ?????????????????????????????????????????????????? | | ?????????????????????????????????????????????????? | | ?????????????????????????????????????????????????? | | ?????????????????????????????????????????????????? | | ?????????????????????????????????????????????????? | | ?????????????????????????????????????????????????? | | ?????????????????????????????????????????????????? | | ?????????????????????????????????????????????????? | | ???????????????#?????????????????????????????????? | | ?????????????? #????????????????????????????????? | | ?????????????? ####????????????????????????????? | | ??????????????# ????????????????????????????? | | ???????????????# #?####??????????????????????? | | ????????????????? ## #??????????????????????? | | ??????????????????# ####???????????????????? | | ??????????????????# ## #????????????? ????? | | ?????????????????## ## ###?????????? ??? | | ????????????????## # ##???????? ?? | | ???????????????## % R #??????? ?? | | ???????????????# #??##?? ? | | ?????????????" ## @### "###"## # | | ???????????????????## ##?## "" """ | | ????????????????????# #???# " " | | ????????????????????# #???# ## ??? | | ????????????###?#??# ##???## % ##???????? | | ?????????###" # #? ##??????# " #????????? | | ????????## %"" ? #????????# "" ????? | | ???????##""""""##% ????######" ### ?? | | ?????### """"# ##??### #" ##?? ?? | | ???### ""#?##"" #??# #???? ?? | | ???# """"####""""##?## "# #??? ## ?? | | ??## " ### " """"??# && "##????? #????? | | ??# ## "# " #????# #?????? #????? | | ??# ##""" " "#????# #??????? ##????? | | ??# =&#### "##???# #???????####?????? | | ??# &%##?# # # #????# """""#????????????????? | | ??# &&[#?### ## %#????# ## ##????????????????? | | ??## ##??# ##% #????# # #?????????????????? | | ??#% #?###% # ##????# # #?????????????????? | | ??# ### # ### ##???# % ## ?????????????????? | | ??## ### # ###### # ?????????????????? | | ??# # ## ## ## ##????????????????? | | ??## # ###### % ## ??????????????????? | | ??## # %#????#### # ## #?????????????????? | | ??# ##???????######## #????????????????? | +----------------------------------------------------+ Best States ------------- Heat Dissipation 25 Energy Generation 10 Energy Capacity 125 Matter Stores 300 Matter Capacity 300 Sight Range 16 Terrain Scan Density 10 Evasion (%) 41 Targeting Accuracy 5 Item Schematics ----------------- None Robot Schematics ------------------ None Fabricated ------------ Nothing Repaired ---------- Nothing Alien Tech Used ----------------- None Achievements -------------- None Challenges ------------ None Game ------ Seed IntegrityThiefLoader Manual? 0 Play Time 00:06:57 Cumulative 28.9 hours Start 2025.08.21 @ 10:13:57 End 2025.08.21 @ 10:20:41 Sessions 1 Manual Loads 0 Difficulty Rogue Special Mode None Game No. 40 Rogue 40 Adventurer 0 Explorer 0 Win Type - Total 0 Types 0/0/0/0/0/0/0/0/0/0 Lore% 13 Gallery% 26 Achievement% 22 Wizard Run 0 Options --------- Layout 1 ASCII 0 Keyboard 0 Movement Mouse Keybinds 0 Fullscreen 1 Font 32/SmallcapsGlow Map View 50x35 Zoom Use 0% Tactical HUD 1 Map Filters NONE Filters NONE Steam 1 RUN: 4e662940-6854-4af5-9e70-8da1ecef447c